[Event "Elite Hotels Open 2024"]
[Site "Elite Stadshotellet, Kungsgatan 6, Vaxjo, Sweden"]
[Date "2024.02.09"]
[Round "3.6"]
[White "Sorensen, Hampus"]
[Black "Muntean, Victor"]
[Result "1-0"]
[TimeControl "15 minutes + 5 seconds per move from move one (Round 1 - 4) / 90 minutes + 30 seconds per move from move one (Round 5 - 8)"]
[WhiteTitle "IM"]
[WhiteFideId "8703884"]
[BlackFideId "1054414"]
[WhiteElo "2430"]
[BlackElo "2106"]

1. e4 {[%clk 00:15:05]} {[%emt 00:00:04]} e5 {[%clk 00:15:09]} {[%emt
00:00:01]} 2. Nf3 {[%clk 00:15:09]} {[%emt 00:00:02]} Nc6 {[%clk 00:15:13]}
{[%emt 00:00:01]} 3. Bb5 {[%clk 00:15:13]} a6 {[%clk 00:15:18]} {[%emt
00:00:01]} 4. Ba4 {[%clk 00:15:17]} f5 {[%clk 00:15:22]} 5. d3 {[%clk
00:15:14]} {[%emt 00:00:08]} fxe4 {[%clk 00:15:25]} {[%emt 00:00:02]} 6. dxe4
{[%clk 00:15:18]} {[%emt 00:00:01]} Nf6 {[%clk 00:15:29]} 7. O-O {[%clk
00:14:48]} {[%emt 00:00:35]} d6 {[%clk 00:15:32]} {[%emt 00:00:01]} 8. Nbd2
{[%clk 00:13:48]} {[%emt 00:01:05]} Be7 {[%clk 00:15:18]} {[%emt 00:00:18]} 9.
c3 {[%clk 00:13:48]} {[%emt 00:00:06]} b5 {[%clk 00:14:52]} {[%emt 00:00:31]}
10. Bb3 {[%clk 00:13:43]} {[%emt 00:00:11]} Na5 {[%clk 00:14:45]} {[%emt
00:00:12]} 11. Bc2 {[%clk 00:13:44]} {[%emt 00:00:04]} Bg4 {[%clk 00:14:20]}
{[%emt 00:00:30]} 12. a4 {[%clk 00:12:24]} {[%emt 00:01:25]} O-O {[%clk
00:13:55]} {[%emt 00:00:28]} 13. h3 {[%clk 00:11:00]} {[%emt 00:01:29]} Bh5
{[%clk 00:13:54]} {[%emt 00:00:07]} 14. Qe2 {[%clk 00:11:04]} Qd7 {[%clk
00:13:40]} {[%emt 00:00:19]} 15. Qe3 {[%clk 00:10:15]} {[%emt 00:00:53]} Kh8
{[%clk 00:12:22]} {[%emt 00:01:24]} 16. b4 {[%clk 00:09:53]} {[%emt 00:00:27]}
Nb7 {[%clk 00:11:49]} {[%emt 00:00:38]} 17. Re1 {[%clk 00:09:19]} {[%emt
00:00:38]} h6 {[%clk 00:11:06]} {[%emt 00:00:48]} 18. Nf1 {[%clk 00:08:15]}
{[%emt 00:01:10]} Nh7 {[%clk 00:10:37]} {[%emt 00:00:34]} 19. N3h2 {[%clk
00:08:01]} {[%emt 00:00:19]} Bh4 {[%clk 00:09:50]} {[%emt 00:00:52]} 20. Ng3
{[%clk 00:07:54]} {[%emt 00:00:12]} Bg6 {[%clk 00:06:38]} {[%emt 00:03:17]} 21.
Nhf1 {[%clk 00:06:42]} {[%emt 00:01:17]} c6 {[%clk 00:04:47]} {[%emt 00:01:57]}
22. Qe2 {[%clk 00:06:24]} {[%emt 00:00:22]} Nd8 {[%clk 00:02:40]} {[%emt
00:02:12]} 23. axb5 {[%clk 00:05:40]} {[%emt 00:00:49]} cxb5 {[%clk 00:02:44]}
{[%emt 00:00:02]} 24. Be3 {[%clk 00:05:44]} Ne6 {[%clk 00:02:39]} {[%emt
00:00:10]} 25. Qg4 {[%clk 00:05:39]} {[%emt 00:00:09]} Bxg3 {[%clk 00:02:06]}
{[%emt 00:00:40]} 26. Nxg3 {[%clk 00:05:13]} {[%emt 00:00:31]} Qe8 {[%clk
00:01:40]} {[%emt 00:00:30]} 27. Red1 {[%clk 00:04:18]} {[%emt 00:01:00]} Nf6
{[%clk 00:01:41]} {[%emt 00:00:03]} 28. Qe2 {[%clk 00:03:54]} {[%emt 00:00:29]}
Qc6 {[%clk 00:01:45]} {[%emt 00:00:02]} 29. Qd2 {[%clk 00:03:32]} {[%emt
00:00:28]} Rfd8 {[%clk 00:01:07]} {[%emt 00:00:43]} 30. Bxh6 {[%clk 00:01:54]}
{[%emt 00:01:42]} Nxe4 {[%clk 00:00:59]} {[%emt 00:00:12]} 31. Nxe4 {[%clk
00:01:33]} {[%emt 00:00:27]} Bxe4 {[%clk 00:01:03]} 32. Bxe4 {[%clk 00:01:36]}
{[%emt 00:00:01]} Qxe4 {[%clk 00:01:07]} {[%emt 00:00:01]} 33. Be3 {[%clk
00:01:34]} {[%emt 00:00:07]} d5 {[%clk 00:00:53]} {[%emt 00:00:20]} 34. Qa2
{[%clk 00:00:36]} {[%emt 00:01:02]} Rd6 {[%clk 00:00:43]} {[%emt 00:00:15]} 35.
Re1 {[%clk 00:00:33]} {[%emt 00:00:08]} Qc4 {[%clk 00:00:20]} {[%emt 00:00:28]}
36. Qb2 {[%clk 00:00:30]} {[%emt 00:00:07]} Nf4 {[%clk 00:00:16]} {[%emt
00:00:10]} 37. Bxf4 {[%clk 00:00:33]} {[%emt 00:00:02]} Qxf4 {[%clk 00:00:15]}
{[%emt 00:00:06]} 38. Rad1 {[%clk 00:00:29]} {[%emt 00:00:08]} Rf8 {[%clk
00:00:17]} {[%emt 00:00:04]} 39. Re3 {[%clk 00:00:20]} {[%emt 00:00:13]} e4
{[%clk 00:00:14]} {[%emt 00:00:09]} 40. Qe2 {[%clk 00:00:18]} {[%emt 00:00:08]}
Rf5 {[%clk 00:00:14]} {[%emt 00:00:05]} 41. Rg3 {[%clk 00:00:20]} {[%emt
00:00:03]} Rdf6 {[%clk 00:00:14]} {[%emt 00:00:04]} 42. Rg4 {[%clk 00:00:12]}
{[%emt 00:00:13]} Qxf2+ 43. Qxf2 {[%clk 00:00:16]} Rxf2 {[%clk 00:00:18]} 44.
Rxd5 {[%emt 00:00:02]} e3 {[%clk 00:00:18]} {[%emt 00:00:05]} 45. Re5 {[%clk
00:00:09]} {[%emt 00:00:14]} e2 {[%clk 00:00:11]} {[%emt 00:00:13]} 46. Rge4
{[%clk 00:00:08]} {[%emt 00:00:06]} Rf1+ {[%clk 00:00:14]} 47. Kh2 {[%clk
00:00:13]} Rc1 {[%clk 00:00:18]} {[%emt 00:00:02]} 48. Rxe2 {[%clk 00:00:12]}
{[%emt 00:00:06]} Rxc3 {[%clk 00:00:22]} 49. R2e4 {[%clk 00:00:09]} {[%emt
00:00:07]} Rc2 {[%clk 00:00:19]} {[%emt 00:00:09]} 50. Rg4 {[%clk 00:00:12]}
{[%emt 00:00:01]} Rc7 {[%clk 00:00:10]} {[%emt 00:00:15]} 51. Rh4+ {[%clk
00:00:09]} {[%emt 00:00:08]} Kg8 {[%clk 00:00:14]} 52. Re8+ {[%clk 00:00:13]}
Kf7 {[%clk 00:00:18]} 53. Ree4 {[%clk 00:00:11]} {[%emt 00:00:07]} Rc2 {[%clk
00:00:17]} {[%emt 00:00:05]} 54. Rhg4 {[%clk 00:00:13]} {[%emt 00:00:03]} Rc7
{[%clk 00:00:16]} {[%emt 00:00:06]} 55. Re5 {[%clk 00:00:14]} {[%emt 00:00:03]}
Rd7 {[%clk 00:00:09]} {[%emt 00:00:13]} 56. Rc5 {[%clk 00:00:18]} {[%emt
00:00:01]} Re7 {[%clk 00:00:12]} {[%emt 00:00:02]} 57. h4 {[%clk 00:00:15]}
{[%emt 00:00:08]} Rd7 {[%clk 00:00:16]} 58. Kh3 {[%clk 00:00:14]} {[%emt
00:00:06]} Rd3+ {[%clk 00:00:20]} {[%emt 00:00:02]} 59. g3 {[%clk 00:00:17]}
Rd7 {[%clk 00:00:20]} {[%emt 00:00:05]} 60. h5 {[%clk 00:00:15]} {[%emt
00:00:06]} Re7 {[%clk 00:00:24]} {[%emt 00:00:02]} 61. Kh4 {[%clk 00:00:19]}
{[%emt 00:00:02]} Rd7 {[%clk 00:00:22]} {[%emt 00:00:06]} 62. Re4 {[%clk
00:00:12]} {[%emt 00:00:12]} Re7 {[%clk 00:00:09]} {[%emt 00:00:18]} 63. Rxe7+
Kxe7 {[%clk 00:00:13]} 64. Rc7+ {[%clk 00:00:16]} Kf8 {[%clk 00:00:18]} 65. g4
{[%clk 00:00:17]} {[%emt 00:00:04]} Rf4 {[%clk 00:00:09]} {[%emt 00:00:14]} 66.
Ra7 {[%clk 00:00:18]} {[%emt 00:00:03]} Rxb4 {[%clk 00:00:12]} {[%emt
00:00:02]} 67. Rxa6 {[%clk 00:00:22]} Rb1 {[%clk 00:00:16]} 68. Kg5 {[%clk
00:00:25]} {[%emt 00:00:02]} Rf1 {[%clk 00:00:10]} {[%emt 00:00:11]} 69. Rb6
{[%clk 00:00:20]} {[%emt 00:00:10]} Kg8 {[%clk 00:00:08]} {[%emt 00:00:07]} 70.
Rxb5 {[%clk 00:00:13]} {[%emt 00:00:12]} Kh7 {[%clk 00:00:12]} 71. Rb7 {[%clk
00:00:11]} {[%emt 00:00:07]} Ra1 {[%clk 00:00:15]} {[%emt 00:00:02]} 72. Kh4
{[%clk 00:00:10]} {[%emt 00:00:06]} Ra4 {[%clk 00:00:18]} {[%emt 00:00:01]} 73.
Rc7 {[%clk 00:00:14]} {[%emt 00:00:02]} Rb4 {[%clk 00:00:21]} {[%emt 00:00:02]}
74. Re7 {[%clk 00:00:15]} {[%emt 00:00:03]} Ra4 {[%clk 00:00:25]} {[%emt
00:00:02]} 75. Kg3 {[%clk 00:00:16]} {[%emt 00:00:04]} Rb4 {[%clk 00:00:26]}
{[%emt 00:00:04]} 76. g5 {[%clk 00:00:17]} {[%emt 00:00:04]} Rb5 {[%clk
00:00:29]} {[%emt 00:00:02]} 77. Kf4 {[%clk 00:00:16]} {[%emt 00:00:06]} Rb4+
{[%clk 00:00:30]} {[%emt 00:00:04]} 78. Kf5 {[%clk 00:00:09]} {[%emt 00:00:12]}
Rb5+ {[%clk 00:00:33]} {[%emt 00:00:02]} 79. Kf4 {[%clk 00:00:11]} {[%emt
00:00:03]} Rb4+ {[%clk 00:00:37]} 80. Re4 {[%clk 00:00:14]} {[%emt 00:00:02]}
Rb5 {[%clk 00:00:39]} {[%emt 00:00:04]} 81. Re8 {[%clk 00:00:13]} {[%emt
00:00:05]} Rb4+ {[%clk 00:00:41]} {[%emt 00:00:03]} 82. Kf3 {[%clk 00:00:14]}
{[%emt 00:00:03]} Rb3+ {[%clk 00:00:44]} {[%emt 00:00:03]} 83. Ke4 {[%clk
00:00:12]} {[%emt 00:00:07]} Rb4+ {[%clk 00:00:47]} {[%emt 00:00:03]} 84. Kd3
{[%clk 00:00:10]} {[%emt 00:00:06]} Rb5 {[%clk 00:00:46]} {[%emt 00:00:06]} 85.
g6+ {[%clk 00:00:11]} {[%emt 00:00:04]} Kh6 {[%clk 00:00:50]} 86. Rh8+ {[%clk
00:00:12]} {[%emt 00:00:04]} Kg5 {[%clk 00:00:54]} {[%emt 00:00:01]} 87. Ke4
{[%clk 00:00:07]} {[%emt 00:00:10]} Rb4+ {[%clk 00:00:26]} {[%emt 00:00:33]} 88.
Ke5 {[%clk 00:00:10]} {[%emt 00:00:02]} Rb5+ {[%clk 00:00:30]} 89. Ke6 {[%clk
00:00:14]} {[%emt 00:00:01]} Rb6+ {[%clk 00:00:34]} {[%emt 00:00:01]} 90. Kf7
{[%clk 00:00:15]} {[%emt 00:00:03]} Rb7+ {[%clk 00:00:38]} {[%emt 00:00:02]} 91.
Ke6 {[%clk 00:00:09]} {[%emt 00:00:11]} Rb6+ {[%clk 00:00:42]} 92. Kf7 {[%clk
00:00:13]} Rb7+ {[%clk 00:00:47]} 93. Kg8 {[%clk 00:00:13]} {[%emt 00:00:05]}
Rc7 {[%clk 00:00:09]} {[%emt 00:00:43]} 94. Kh7 {[%clk 00:00:09]} {[%emt
00:00:09]} Kxh5 {[%clk 00:00:11]} {[%emt 00:00:03]} 95. Rg8 {[%clk 00:00:13]}
{[%emt 00:00:01]} Kg5 {[%clk 00:00:09]} {[%emt 00:00:06]} 96. Rxg7 {[%clk
00:00:17]} {[%emt 00:00:02]} Rc8 {[%clk 00:00:09]} {[%emt 00:00:05]} 97. Ra7
{[%clk 00:00:19]} {[%emt 00:00:03]} 1-0

[Event "Elite Hotels Open 2024"]
[Site "Elite Stadshotellet, Kungsgatan 6, Vaxjo, Sweden"]
[Date "2024.02.09"]
[Round "3.7"]
[White "Fransson, Patrick"]
[Black "Jepson, Christian"]
[Result "0-1"]
[TimeControl "15 minutes + 5 seconds per move from move one (Round 1 - 4) / 90 minutes + 30 seconds per move from move one (Round 5 - 8)"]
[BlackTitle "IM"]
[WhiteFideId "1709305"]
[BlackFideId "1701185"]
[WhiteElo "2086"]
[BlackElo "2386"]

1. d4 {[%clk 00:15:07]} {[%emt 00:00:02]} Nf6 {[%clk 00:15:08]} {[%emt
00:00:02]} 2. Bg5 {[%clk 00:15:07]} {[%emt 00:00:05]} e6 {[%clk 00:15:03]}
{[%emt 00:00:11]} 3. e3 {[%clk 00:15:10]} {[%emt 00:00:02]} b6 {[%clk
00:14:56]} {[%emt 00:00:13]} 4. f4 {[%clk 00:15:06]} {[%emt 00:00:08]} h6
{[%clk 00:14:24]} {[%emt 00:00:38]} 5. Bh4 {[%clk 00:15:09]} {[%emt 00:00:02]}
Bb7 {[%clk 00:13:21]} {[%emt 00:01:08]} 6. Nf3 {[%clk 00:15:08]} {[%emt
00:00:05]} Be7 {[%clk 00:13:18]} {[%emt 00:00:09]} 7. Nbd2 {[%clk 00:15:02]}
{[%emt 00:00:10]} g5 {[%clk 00:09:49]} {[%emt 00:03:35]} 8. Bg3 {[%clk
00:14:14]} {[%emt 00:00:53]} d6 {[%clk 00:08:45]} {[%emt 00:01:08]} 9. Bd3
{[%clk 00:13:44]} {[%emt 00:00:35]} Nbd7 {[%clk 00:08:29]} {[%emt 00:00:22]} 10.
Qe2 {[%clk 00:13:25]} {[%emt 00:00:24]} g4 {[%clk 00:07:35]} {[%emt 00:00:58]}
11. Ng1 {[%clk 00:13:20]} {[%emt 00:00:10]} Rg8 {[%clk 00:05:41]} {[%emt
00:01:59]} 12. e4 {[%emt 00:00:29]} Nh5 {[%clk 00:05:30]} {[%emt 00:00:09]} 13.
O-O-O {[%clk 00:12:36]} {[%emt 00:00:32]} e5 {[%clk 00:05:05]} {[%emt
00:00:31]} 14. dxe5 {[%clk 00:11:15]} {[%emt 00:01:26]} dxe5 {[%clk 00:05:08]}
{[%emt 00:00:01]} 15. fxe5 {[%clk 00:09:40]} {[%emt 00:01:40]} Nxg3 {[%clk
00:04:58]} {[%emt 00:00:16]} 16. hxg3 {[%clk 00:09:40]} {[%emt 00:00:04]} Bg5
{[%clk 00:04:55]} {[%emt 00:00:08]} 17. e6 {[%clk 00:09:04]} {[%emt 00:00:42]}
fxe6 {[%clk 00:04:59]} {[%emt 00:00:01]} 18. e5 {[%clk 00:08:56]} {[%emt
00:00:12]} Qe7 {[%clk 00:04:07]} {[%emt 00:00:57]} 19. Kb1 {[%clk 00:06:27]}
{[%emt 00:02:34]} O-O-O {[%clk 00:03:53]} {[%emt 00:00:19]} 20. Nb3 {[%clk
00:05:41]} {[%emt 00:00:51]} Nc5 {[%clk 00:01:41]} {[%emt 00:02:18]} 21. Re1
{[%clk 00:04:45]} {[%emt 00:01:01]} Nxd3 {[%clk 00:01:39]} {[%emt 00:00:07]} 22.
cxd3 {[%clk 00:04:47]} {[%emt 00:00:02]} Qh7 {[%clk 00:01:12]} {[%emt
00:00:32]} 23. Rd1 {[%clk 00:04:27]} {[%emt 00:00:26]} Ba6 {[%clk 00:01:04]}
{[%emt 00:00:13]} 24. a3 {[%clk 00:02:56]} {[%emt 00:01:36]} Bxd3+ {[%clk
00:01:02]} {[%emt 00:00:07]} 25. Rxd3 {[%clk 00:02:59]} {[%emt 00:00:02]} Qxd3+
{[%clk 00:01:06]} {[%emt 00:00:02]} 26. Qxd3 {[%clk 00:02:38]} {[%emt
00:00:25]} Rxd3 {[%clk 00:01:09]} {[%emt 00:00:02]} 27. Kc2 {[%clk 00:02:42]}
Rxg3 {[%clk 00:01:11]} {[%emt 00:00:03]} 28. Ne2 {[%clk 00:02:14]} {[%emt
00:00:33]} Rxg2 {[%clk 00:01:12]} {[%emt 00:00:05]} 29. Kd1 {[%clk 00:02:18]}
c5 {[%clk 00:01:10]} {[%emt 00:00:08]} 30. Ke1 {[%clk 00:02:16]} {[%emt
00:00:07]} Rf8 {[%clk 00:01:09]} {[%emt 00:00:06]} 31. Rf1 {[%clk 00:01:06]}
{[%emt 00:01:15]} Bh4+ {[%clk 00:01:07]} {[%emt 00:00:07]} 0-1

[Event "Elite Hotels Open 2024"]
[Site "Elite Stadshotellet, Kungsgatan 6, Vaxjo, Sweden"]
[Date "2024.02.09"]
[Round "3.8"]
[White "Akesson, Ralf"]
[Black "Sundin, Emanuel"]
[Result "1-0"]
[TimeControl "15 minutes + 5 seconds per move from move one (Round 1 - 4) / 90 minutes + 30 seconds per move from move one (Round 5 - 8)"]
[WhiteTitle "GM"]
[WhiteFideId "1700120"]
[BlackFideId "1719173"]
[WhiteElo "2378"]
[BlackElo "2086"]

1. d4 {[%clk 00:15:03]} {[%emt 00:00:06]} Nf6 {[%clk 00:15:05]} {[%emt
00:00:06]} 2. c4 {[%clk 00:15:06]} {[%emt 00:00:02]} e5 {[%clk 00:15:07]}
{[%emt 00:00:02]} 3. dxe5 {[%clk 00:15:08]} {[%emt 00:00:03]} Ng4 {[%clk
00:15:10]} {[%emt 00:00:03]} 4. Bf4 {[%clk 00:14:38]} {[%emt 00:00:34]} Nc6
{[%clk 00:15:11]} {[%emt 00:00:05]} 5. Nf3 {[%clk 00:14:41]} {[%emt 00:00:02]}
Bb4+ {[%clk 00:15:13]} {[%emt 00:00:03]} 6. Nbd2 {[%clk 00:14:07]} {[%emt
00:00:39]} Qe7 {[%clk 00:15:13]} {[%emt 00:00:04]} 7. a3 {[%clk 00:13:57]}
{[%emt 00:00:15]} Ngxe5 {[%clk 00:15:10]} {[%emt 00:00:08]} 8. Nxe5 {[%clk
00:13:59]} {[%emt 00:00:04]} Nxe5 {[%clk 00:15:12]} {[%emt 00:00:03]} 9. e3
{[%clk 00:14:01]} {[%emt 00:00:02]} Bc5 {[%clk 00:14:09]} {[%emt 00:01:08]} 10.
Be2 {[%clk 00:12:06]} {[%emt 00:02:00]} d6 {[%clk 00:13:28]} {[%emt 00:00:46]}
11. O-O {[%clk 00:11:12]} {[%emt 00:00:59]} a5 {[%clk 00:13:15]} {[%emt
00:00:18]} 12. Ne4 {[%clk 00:10:44]} {[%emt 00:00:33]} Ng6 {[%clk 00:13:07]}
{[%emt 00:00:13]} 13. Nxc5 {[%clk 00:09:21]} {[%emt 00:01:29]} Nxf4 {[%clk
00:13:10]} {[%emt 00:00:02]} 14. exf4 {[%clk 00:09:24]} {[%emt 00:00:01]} dxc5
{[%clk 00:13:13]} {[%emt 00:00:02]} 15. Re1 {[%clk 00:09:19]} {[%emt 00:00:10]}
O-O {[%clk 00:13:15]} {[%emt 00:00:02]} 16. Bf3 {[%clk 00:08:22]} {[%emt
00:01:02]} Qf6 {[%clk 00:13:18]} {[%emt 00:00:03]} 17. Qd2 {[%clk 00:07:31]}
{[%emt 00:00:55]} Ra6 {[%clk 00:13:19]} {[%emt 00:00:04]} 18. Re5 {[%clk
00:07:22]} {[%emt 00:00:14]} Rb6 {[%clk 00:10:47]} {[%emt 00:02:37]} 19. Rae1
{[%clk 00:06:59]} {[%emt 00:00:28]} g6 {[%clk 00:07:57]} {[%emt 00:02:55]} 20.
R1e2 {[%clk 00:06:07]} {[%emt 00:00:57]} Be6 {[%clk 00:06:08]} {[%emt
00:01:53]} 21. Rxc5 {[%clk 00:05:40]} {[%emt 00:00:32]} c6 {[%clk 00:04:25]}
{[%emt 00:01:48]} 22. g3 {[%clk 00:04:58]} {[%emt 00:00:48]} a4 {[%clk
00:04:03]} {[%emt 00:00:27]} 23. Kg2 {[%clk 00:03:45]} {[%emt 00:01:18]} Rb3
{[%clk 00:03:40]} {[%emt 00:00:28]} 24. Ree5 {[%clk 00:03:19]} {[%emt
00:00:30]} Rd8 {[%clk 00:02:59]} {[%emt 00:00:47]} 25. Qc2 {[%clk 00:02:30]}
{[%emt 00:00:54]} Bf5 {[%clk 00:02:07]} {[%emt 00:00:56]} 26. Qe2 {[%clk
00:02:15]} {[%emt 00:00:20]} Rdd3 {[%clk 00:01:33]} {[%emt 00:00:39]} 27. Be4
{[%clk 00:01:41]} {[%emt 00:00:39]} Bxe4+ {[%clk 00:00:51]} {[%emt 00:00:48]}
28. Rxe4 {[%clk 00:01:45]} {[%emt 00:00:01]} Qxb2 {[%clk 00:00:32]} {[%emt
00:00:24]} 29. Re8+ {[%clk 00:01:44]} {[%emt 00:00:05]} Kg7 {[%clk 00:00:35]}
{[%emt 00:00:02]} 30. Qe7 {[%clk 00:01:43]} {[%emt 00:00:06]} Qxa3 {[%clk
00:00:07]} {[%emt 00:00:33]} 31. Qf8+ {[%clk 00:01:39]} {[%emt 00:00:09]} Kf6
{[%clk 00:00:11]} {[%emt 00:00:02]} 32. Qh8# {[%clk 00:01:37]} {[%emt
00:00:06]} 1-0